bitfinex/quotes_ETHUSD_20220310
["timestamp","ask_amount","ask_price","bid_price","bid_amount"]
[1646900471708,0.05406442,2591.5,2591.2,7.7184]
[1646900472155,1.02003442,2591.5,2591.2,7.7184]
[1646900472358,0.04820451,2591.4,2591.2,7.7184]
[1646900472557,0.96608,2591.3,2591.2,7.7184]
[1646900480655,1.9319,2591.5,2591.2,7.7184]
[1646900482660,1.9319,2591.5,2591.2,8.0184]
[1646900482861,0.96597,2591.5,2591.2,8.0184]
[1646900483501,0.9592864,2591.5,2591.2,8.0184]
[1646900486411,5.90445328,2591.5,2591.2,7.7184]
[1646900486615,0.05326115,2591.4,2591.2,7.7184]
[1646900487860,0.05358971,2591.3,2591.2,7.7184]
[1646900489759,4.99875659,2591.3,2591.2,7.7184]
[1646900490161,0.05358971,2591.3,2591.2,7.7184]
[1646900491011,4.99875659,2591.3,2591.2,7.7184]
[1646900491203,5.99875659,2591.3,2591.2,7.7184]
[1646900492411,38.5,2591.2,2590.3,0.3859]
[1646900492615,0.96644,2590.8,2589.7,9.73553232]
[1646900492812,0.05014765,2590.6,2589.3,0.07931714]
[1646900493208,1.11615568,2589.7,2589.1,0.08816538]
[1646900493412,4.97273312,2589.6,2588.8,0.09015308]
[1646900493612,0.96676,2589.4,2588.6,0.08343955]
[1646900493809,0.96676,2589.3,2588.4,0.06320291]
[1646900494758,1.02888663,2589.1,2588.7,7.725]
[1646900494956,0.06103978,2589.0,2588.7,7.725]
[1646900495956,1.02790978,2589.0,2588.7,7.725]
[1646900496357,1.02790978,2589.0,2588.7,7.72840382]
[1646900497173,1.02790978,2589.0,2588.7,7.725]
[1646900497362,1.02790978,2589.0,2588.7,7.72840382]
[1646900498316,1.02790978,2589.0,2588.7,7.725]
[1646900498501,0.96692,2588.8,2588.7,7.725]
[1646900498705,0.96692,2588.8,2588.7,7.72840382]
[1646900499506,0.96692,2588.8,2588.7,7.725]
[1646900500509,5.93965312,2588.8,2588.7,7.725]
[1646900500707,5.93965312,2588.8,2587.4,13.74799139]
[1646900500708,0.9672,2588.6,2587.4,13.74799139]
[1646900500907,40.82069,2588.7,2587.4,13.74799139]
[1646900500908,0.96727,2588.2,2587.4,0.06829139]
[1646900501107,0.06234829,2588.4,2587.0,0.75]
[1646900501108,5.07744261,2588.1,2587.1,0.0705815]
[1646900501312,1.23481909,2588.1,2587.3,1.20154043]
[1646900501506,1.23481909,2588.1,2587.1,0.0705815]
[1646900501507,5.02233634,2588.0,2587.1,0.0705815]
[1646900501706,1.23481909,2588.1,2587.1,11.8605815]
[1646900501908,1.23481909,2588.1,2587.2,0.0640072]
[1646900501909,0.96724,2588.0,2587.2,0.0640072]
[1646900502461,11.05021634,2588.3,2587.3,11.79]
[1646900502462,1.1588,2588.3,2587.3,11.79]
[1646900502656,6.18113634,2588.3,2587.4,12.5402]
[1646900502855,6.18113634,2588.3,2587.5,0.07463177]
[1646900503055,1.1588,2588.3,2587.5,0.07463177]
[1646900503257,1.1588,2588.3,2587.6,0.857]
[1646900503457,1.1588,2588.3,2587.9,0.91157003]
[1646900503656,0.05592417,2588.6,2587.9,0.91157003]
[1646900503860,0.10451957,2588.5,2587.9,0.91157003]
[1646900504658,0.10451957,2588.5,2588.1,0.00340049]
[1646900505059,0.06127957,2588.5,2588.1,0.00340049]
[1646900505459,0.06127957,2588.5,2587.9,0.91157003]
[1646900505904,0.06127957,2588.5,2588.2,0.00340045]
[1646900506509,5.08361591,2588.5,2588.2,0.00340045]
[1646900506706,0.05248206,2588.4,2587.6,0.857]
[1646900506906,0.05248206,2588.4,2588.2,0.00340043]
[1646900507510,0.09366384,2588.7,2588.2,0.00340043]
[1646900507911,0.05042384,2588.7,2588.2,0.00340043]
[1646900508108,0.05042384,2588.7,2587.7,0.07125579]
[1646900508310,0.05042384,2588.7,2588.3,0.00340038]
[1646900509114,1.03025361,2588.6,2588.3,0.00340038]
[1646900509553,1.03025361,2588.6,2588.4,0.00297599]
[1646900509954,0.06112434,2588.5,2588.4,0.00297599]
[1646900510354,0.06112434,2588.5,2587.8,0.96093434]
[1646900510553,0.06112434,2588.5,2587.8,1.26093434]
[1646900510753,0.06112434,2588.5,2588.3,0.00297605]
[1646900511556,0.06112434,2588.5,2587.8,1.26093434]
[1646900511760,0.06112434,2588.5,2588.3,0.00297611]
[1646900512762,0.06112434,2588.5,2587.8,1.26093434]
[1646900513162,0.06112434,2588.5,2588.3,0.00310414]
[1646900513405,0.96703,2588.4,2588.3,0.00310414]
[1646900514103,0.96703,2588.4,2587.8,1.26093434]
[1646900514307,0.96703,2588.4,2588.2,0.0031042]
[1646900514505,0.06112434,2588.5,2588.2,0.0031042]
[1646900514705,0.05273061,2588.7,2588.2,0.0031042]
[1646900515303,0.05273061,2588.7,2588.0,0.07188555]
[1646900515505,0.05273061,2588.7,2588.3,0.00310408]
[1646900516304,0.05273061,2588.7,2587.8,0.557]
[1646900516505,0.05273061,2588.7,2587.8,0.3]
[1646900516705,0.05273061,2588.7,2587.6,0.07928996]
[1646900516706,0.96717,2588.4,2587.6,0.07928996]
[1646900517361,0.96717,2588.4,2587.9,1.21123404]
[1646900517559,0.96713,2588.3,2587.9,1.21123404]
[1646900517758,0.96713,2588.3,2587.6,0.07928996]
[1646900517959,0.96708,2588.2,2587.9,0.00307581]
[1646900518769,0.96708,2588.2,2587.6,0.07928996]
[1646900518960,0.96708,2588.2,2587.9,0.00307575]
[1646900519960,0.96708,2588.2,2587.6,1.18065831]
[1646900520161,0.96708,2588.2,2587.9,0.00308223]
[1646900520562,0.0625823,2588.1,2587.9,0.00308223]
[1646900520840,0.05274888,2588.0,2587.9,0.00308223]
[1646900521325,0.05274888,2588.0,2587.3,0.07234976]
[1646900521527,0.05274888,2588.0,2587.9,0.00308229]
[1646900521528,1.01984888,2588.0,2587.9,0.00308229]
[1646900521728,0.05274888,2588.0,2587.9,0.00308229]
[1646900522132,1.2412,2588.3,2587.9,0.00308229]
[1646900522328,0.05937918,2588.2,2587.3,1.05467241]
[1646900522530,1.02638918,2588.2,2587.3,1.05467241]
[1646900522730,0.05108918,2588.1,2587.8,0.00308235]
[1646900523530,0.05108918,2588.1,2587.4,0.06655272]
[1646900523930,0.05108918,2588.1,2587.8,0.00308089]
[1646900524662,5.02233634,2588.7,2587.8,0.00308089]
[1646900524663,0.06452643,2588.5,2588.1,51.0]
[1646900524858,0.06417022,2588.7,2588.1,51.0]
[1646900525056,0.10737022,2588.7,2587.9,0.557]
[1646900525258,0.10737022,2588.7,2587.9,0.857]
[1646900525658,0.03649082,2588.0,2587.9,0.857]
[1646900525859,0.96437537,2588.5,2588.1,49.99643918]
[1646900526060,0.05342635,2588.4,2588.1,49.99643918]
[1646900526265,0.05342635,2588.4,2588.2,0.00308047]
[1646900526662,0.06085841,2588.3,2588.2,0.00308047]
[1646900527167,0.06085841,2588.3,2587.1,0.63417185]
[1646900527365,0.06085841,2588.3,2587.1,0.07717185]
[1646900527366,0.96736,2588.0,2587.1,0.07717185]
[1646900527565,0.05124406,2587.8,2587.0,0.1932]
[1646900527764,0.04987179,2588.1,2587.0,0.1932]
[1646900527965,1.01726829,2588.1,2587.0,0.1932]
[1646900528163,0.05704128,2587.9,2587.2,7.7289]
[1646900528417,0.96736,2587.7,2587.2,7.7289]
[1646900528621,0.05614548,2587.6,2587.4,0.0030817]
[1646900529617,0.05614548,2587.6,2587.2,7.7289]
[1646900529821,0.05614548,2587.6,2587.4,0.00308176]
[1646900530818,0.05614548,2587.6,2587.2,7.7289]
[1646900531019,0.05614548,2587.6,2587.4,0.00308168]
[1646900531720,0.05441142,2587.8,2587.4,0.00308168]
[1646900531920,0.05441142,2587.8,2587.2,7.7289]
[1646900532163,0.96726,2588.1,2587.2,8.0289]
[1646900532164,0.09517375,2588.0,2587.2,8.0289]
[1646900532367,0.09517375,2588.0,2587.4,0.00308168]
[1646900532565,0.05233375,2588.0,2587.4,0.00308168]
[1646900533164,0.05233375,2588.0,2587.2,8.0289]
[1646900533564,0.05233375,2588.0,2587.6,0.00308144]
[1646900533965,0.06284331,2587.9,2587.6,0.00308144]
[1646900534164,0.96732,2587.8,2587.6,0.00308144]
[1646900534364,0.05514357,2587.7,2587.2,8.0289]
[1646900534970,0.05514357,2587.7,2587.6,0.0030814]
[1646900535166,0.05568985,2588.1,2587.7,51.0]
[1646900535365,0.05568985,2588.1,2587.6,0.0030814]
[1646900536006,0.05568985,2588.1,2587.7,0.557]
[1646900536205,11.46534017,2588.8,2588.3,0.94844688]
[1646900536409,0.04429,2588.6,2588.3,0.94844688]
[1646900536607,0.05248627,2588.8,2588.3,0.94844688]
[1646900536608,0.04465,2588.7,2588.3,0.94844688]
[1646900537209,0.05248627,2588.8,2588.3,0.95131661]
[1646900538110,0.05248627,2588.8,2588.3,0.94844688]
[1646900538310,0.05248627,2588.8,2588.4,0.0028697]
[1646900539312,0.05248627,2588.8,2588.3,0.94844688]
[1646900539553,0.05248627,2588.8,2588.5,0.00286968]
[1646900539755,0.05248627,2588.8,2588.0,4.95825046]
[1646900539954,0.05248627,2588.8,2588.2,1.1156806]
[1646900540355,0.05248627,2588.8,2588.0,4.95825046]
[1646900540356,1.01943627,2588.8,2588.0,4.95825046]
[1646900541362,1.01943627,2588.8,2587.9,0.64271496]
[1646900541561,1.01943627,2588.8,2587.9,0.38571496]
[1646900541760,1.01943627,2588.8,2588.0,1.03885544]
[1646900541962,1.01943627,2588.8,2588.3,0.00093345]
[1646900542364,1.98830679,2588.6,2588.3,0.00093345]
[1646900542562,0.04582468,2588.4,2588.3,0.00093345]
[1646900542962,0.96724,2588.1,2587.3,0.08785849]
[1646900543162,0.96724,2588.1,2587.4,0.07882426]
[1646900543410,0.96724,2588.1,2587.5,1.03771116]
[1646900544210,0.96724,2588.1,2587.5,1.33771116]
[1646900544412,0.96724,2588.1,2587.7,0.00310505]
[1646900545420,0.96724,2588.1,2587.5,1.33771116]
[1646900545616,1.01655304,2588.3,2587.8,0.00326502]
[1646900546615,1.01655304,2588.3,2587.5,1.33771116]
[1646900546816,1.01655304,2588.3,2587.9,0.00326496]
[1646900547657,0.96711,2588.3,2587.6,0.08541386]
[1646900548059,0.96711,2588.3,2588.0,0.00326494]
[1646900548358,1.02441285,2588.3,2587.5,1.05302158]
[1646900548555,1.02441285,2588.3,2587.5,0.62663162]
[1646900549656,0.05730285,2588.3,2587.6,12.98249634]
[1646900549860,6.6519,2588.9,2588.3,50.94269715]
[1646900550060,6.6519,2588.9,2587.8,119.0]
[1646900550061,6.6519,2588.9,2588.2,0.557]
[1646900550260,0.05526154,2589.0,2588.3,12.42221746]
[1646900550456,0.06502643,2589.1,2588.3,11.42221746]
[1646900550659,0.06502643,2589.1,2588.5,11.42221746]
[1646900550909,0.06502643,2589.1,2588.6,0.557]
[1646900551908,2.471,2589.5,2588.6,0.557]
[1646900551909,0.07282633,2589.4,2588.6,0.557]
[1646900552815,0.07282633,2589.4,2588.3,1.82432126]
[1646900553116,0.11606633,2589.4,2588.4,0.557]
[1646900553317,0.07282633,2589.4,2588.4,0.557]
[1646900553915,0.07282633,2589.4,2588.5,0.3863]
[1646900554116,0.07124144,2589.6,2589.4,51.0]
[1646900554314,0.08483761,2589.6,2589.4,0.3]
[1646900554559,0.01359617,2589.6,2589.1,0.857]
[1646900554859,0.04327,2590.1,2589.3,70.0]
[1646900554860,0.12866068,2590.1,2589.3,70.0]
[1646900555063,0.12866068,2590.1,2589.3,70.3]
[1646900555359,0.12866068,2590.1,2589.3,68.3]
[1646900555360,1.09510068,2590.1,2589.3,68.3]
[1646900555560,0.07874235,2590.0,2589.3,68.857]
[1646900557374,0.07874235,2590.0,2589.3,69.157]
[1646900557568,0.07874235,2590.0,2589.3,0.857]
[1646900557770,0.07874235,2590.0,2589.3,0.3]
[1646900557771,0.00341119,2589.8,2589.3,0.3]
[1646900558069,0.00341119,2589.8,2589.1,0.00341211]
[1646900558070,0.07863526,2589.7,2589.1,0.00341211]
[1646900558316,1.04525526,2589.7,2589.1,0.00341211]
[1646900558509,4.77712837,2589.8,2589.1,0.00341211]
[1646900558510,0.08487561,2589.4,2589.1,0.00341211]
[1646900558707,0.06938178,2589.3,2588.5,7.7265]
[1646900559105,0.06938178,2589.3,2589.1,0.00341189]
[1646900559505,0.06938178,2589.3,2588.5,7.7265]
[1646900559506,0.06938178,2589.3,2588.6,0.96731672]
[1646900559706,0.06938178,2589.3,2588.6,0.557]
[1646900560108,1.30564175,2589.6,2589.3,50.93061822]
[1646900560305,25.5,2589.9,2589.0,0.557]
[1646900560306,0.06142255,2589.8,2589.0,0.557]
[1646900560806,0.06142255,2589.8,2589.0,0.857]
[1646900561009,0.06142255,2589.8,2589.0,2.06999073]
[1646900561406,0.06142255,2589.8,2588.7,115.27994536]
[1646900561407,0.06142255,2589.8,2588.8,0.3863]
[1646900561707,0.06142255,2589.8,2588.9,10.1082]
[1646900561906,0.06142255,2589.8,2589.0,0.557]
[1646900562566,0.06142255,2589.8,2589.0,0.56041199]
[1646900562567,0.00341123,2589.5,2589.0,0.56041199]
[1646900562768,0.00341123,2589.5,2588.9,7.72531199]
[1646900562769,0.06168582,2589.5,2588.9,7.72531199]
[1646900563366,0.06168582,2589.5,2588.9,8.02531199]
[1646900563569,0.05827459,2589.5,2588.9,8.02531199]
[1646900564968,0.05827459,2589.5,2588.9,6.02531199]
[1646900566210,0.05827459,2589.5,2588.9,6.32531199]
[1646900566603,0.05827459,2589.5,2588.9,4.32531199]
[1646900567409,0.06168571,2589.5,2588.9,4.32872398]
[1646900567814,4.72300789,2589.5,2588.9,4.32872398]
[1646900568012,0.06168571,2589.5,2588.9,4.32872398]
[1646900568210,0.06168571,2589.5,2588.9,2.62872398]
[1646900568410,0.96659,2589.8,2588.9,2.62531199]
[1646900568411,0.07083663,2589.7,2588.9,2.62531199]
[1646900568612,0.00341112,2589.5,2588.9,2.62872398]
[1646900569559,0.99349597,2589.6,2588.9,0.62531199]
[1646900569760,0.07421182,2589.5,2588.9,0.62872398]
[1646900570258,0.07421182,2589.5,2588.9,0.92872398]
[1646900570659,0.07421182,2589.5,2588.9,0.92531199]
[1646900570660,0.0708007,2589.5,2588.9,0.92531199]
[1646900570859,0.00341112,2589.5,2588.9,0.00341199]
[1646900571860,0.06175011,2589.6,2588.7,105.35841199]
[1646900572263,0.00329855,2589.5,2588.9,0.00329939]
[1646900572667,40.0,2589.0,2588.0,2.3196847]
[1646900572871,40.0,2589.0,2587.6,4.9872789]
[1646900572872,4.581546,2588.9,2588.1,7.7265]
[1646900573065,0.0735005,2588.8,2588.1,7.7265]
[1646900573711,0.0652037,2588.5,2588.1,7.7265]
[1646900573910,0.20340366,2588.5,2588.1,7.7265]
[1646900574113,0.96741,2587.9,2586.9,5.5245]
[1646900574311,0.07162988,2587.7,2586.9,3.5245]
[1646900574510,0.07162988,2587.7,2586.4,0.154595]
[1646900574710,0.07162988,2587.7,2586.5,1.60195493]
[1646900574911,0.07162988,2587.7,2586.6,4.581546]
[1646900575110,2.07943642,2587.2,2586.4,4.4862813]
[1646900575309,0.06308318,2587.6,2587.2,48.92056358]
[1646900575508,0.06308318,2587.6,2586.4,34.0]
[1646900575715,0.06308318,2587.6,2585.8,1.1495]
[1646900575716,0.06308318,2587.6,2586.0,0.07431038]
[1646900575912,0.05254604,2587.3,2586.7,0.00341278]
[1646900576312,1.93555,2587.1,2586.7,0.00341278]
[1646900576514,0.06817219,2587.0,2586.7,0.00341278]
[1646900576716,0.06817219,2587.0,2585.4,1.60252794]
[1646900576717,0.06203171,2586.7,2585.4,1.60252794]
[1646900576914,0.07392908,2586.5,2585.0,19.1628655]
[1646900577161,0.07392908,2586.5,2585.1,0.00096]
[1646900577162,0.07686615,2586.4,2585.1,0.00096]
[1646900577366,1.04486615,2586.4,2585.3,0.00459179]
[1646900577567,4.52849633,2586.3,2585.3,0.00459179]
[1646900577762,0.07322991,2586.2,2585.3,0.00459179]
[1646900577962,0.07322991,2586.2,2584.6,0.00096]
[1646900578363,0.07322991,2586.2,2584.5,10.34796]
[1646900578364,42.3863,2585.9,2584.5,10.34796]
[1646900578563,1.21151631,2585.4,2584.6,0.00096]
[1646900578765,0.06559202,2585.3,2584.5,10.34796]
[1646900578962,0.94980179,2585.5,2585.4,49.72289167]
[1646900579164,0.05743356,2585.7,2584.6,33.29489704]
[1646900579366,0.05743356,2585.7,2584.6,33.35901046]
[1646900579563,0.05743356,2585.7,2584.6,31.35901046]
[1646900579965,0.96813,2585.6,2584.7,0.06110696]
[1646900580165,0.88031853,2585.4,2584.7,0.06110696]
[1646900580365,1.02136258,2585.6,2585.4,50.05263189]
[1646900580565,1.02136258,2585.6,2584.8,26.8]
[1646900580822,1.02136258,2585.6,2584.8,25.10341746]
[1646900581414,1.06856287,2585.5,2584.8,25.10341746]
[1646900581816,1.06856287,2585.5,2584.9,4.36105428]
[1646900582025,1.06856287,2585.5,2584.8,25.10341746]
[1646900582616,1.06856287,2585.5,2584.9,4.36105428]
[1646900582815,1.11183287,2585.5,2584.8,25.10341746]
[1646900583217,0.04327,2585.5,2584.8,25.10341746]
[1646900583618,0.04327,2585.5,2584.9,4.36105428]
[1646900583819,0.04327,2585.5,2584.8,25.10341746]
[1646900584221,0.04327,2585.5,2584.8,26.17681933]
[1646900584421,0.00229006,2585.5,2584.8,26.17681933]
[1646900584664,0.00229006,2585.5,2584.9,4.36105428]
[1646900584862,0.04277,2585.8,2585.5,50.99770994]
[1646900585071,0.04277,2585.8,2585.6,4.36105428]
[1646900585267,0.04252,2586.0,2585.5,0.3]
[1646900585465,0.05017255,2586.4,2585.5,4.66105428]
[1646900585667,0.05017255,2586.4,2585.6,0.08011852]
[1646900585868,1.16208002,2586.2,2585.6,0.08011852]
[1646900586270,1.16208002,2586.2,2585.5,0.3]
[1646900586470,0.08517882,2586.1,2585.3,0.07867684]
[1646900587470,1.05312882,2586.1,2585.3,0.07867684]
[1646900589316,0.00341688,2585.8,2585.3,0.07867684]
[1646900589614,0.97146688,2585.8,2585.3,0.07867684]
[1646900589819,1.98752378,2585.8,2585.1,4.66447211]
[1646900590215,1.9841069,2585.8,2585.1,4.66105428]
[1646900590415,1.9841069,2585.8,2585.1,4.66447198]
[1646900590416,0.00341695,2585.7,2585.1,4.66447198]
[1646900590616,0.05291909,2586.1,2585.8,50.99658305]
[1646900590917,0.04471,2586.4,2585.8,0.3]
[1646900591215,0.04471,2586.4,2585.5,4.34528846]
[1646900591419,1.01254,2586.4,2585.5,4.64528846]
[1646900591619,0.04471,2586.4,2586.0,1.01147331]
[1646900591819,11.2595,2586.8,2586.4,50.95529]
[1646900591820,11.30800339,2586.8,2586.4,50.95529]
[1646900592058,10.13310339,2586.8,2586.4,50.95529]
[1646900592262,10.13310339,2586.8,2586.1,17.5]
[1646900592263,3.86970339,2586.8,2586.1,17.5]
[1646900592464,1.04850339,2586.8,2586.1,17.5]
[1646900592762,0.04850339,2586.8,2586.1,17.5]
[1646900592965,1.93532,2587.1,2586.8,51.0]
[1646900592966,0.04417013,2587.1,2586.8,51.0]
[1646900593163,0.96753,2587.8,2586.8,51.0]
[1646900593164,0.05047821,2587.6,2586.8,51.0]
[1646900593363,0.0533051,2588.0,2586.7,0.3]
[1646900593768,0.0533051,2588.0,2586.5,4.64528846]
[1646900594064,0.05270267,2587.4,2586.7,0.96533145]
[1646900594267,0.05270267,2587.4,2586.7,1.26533145]
[1646900594466,0.04353971,2587.3,2586.7,1.26533145]
[1646900595368,0.00341631,2587.1,2586.7,1.26533145]
[1646900595569,0.0136632,2587.5,2587.1,50.99658369]
[1646900595830,0.0136632,2587.5,2586.9,41.0]
[1646900596022,0.0136632,2587.5,2586.9,41.3]
[1646900596224,1.13468117,2587.4,2586.8,0.06996966]
[1646900596424,0.04519724,2587.3,2586.7,0.3]
[1646900596623,0.96756,2587.1,2586.6,0.3]
[1646900597023,0.96756,2587.1,2586.4,0.08095217]
[1646900597224,0.95465648,2586.9,2586.4,0.38095217]
[1646900597430,0.95465648,2586.9,2586.4,0.08095217]
[1646900597627,1.93518,2587.3,2586.4,0.08095217]
[1646900597825,0.04960453,2587.2,2586.4,0.08095217]
[1646900598626,1.05472774,2587.1,2586.4,0.08095217]
[1646900598828,1.05472774,2587.1,2586.4,1.25797917]
[1646900599025,1.05472774,2587.1,2586.4,0.08095217]
[1646900600085,0.05192326,2587.0,2586.1,0.3]
[1646900600464,0.05192326,2587.0,2586.0,0.04469]
[1646900601062,0.05192326,2587.0,2586.0,0.13076277]
[1646900601265,0.05192326,2587.0,2586.2,0.967458]
[1646900601466,0.05192326,2587.0,2586.2,1.98961843]
[1646900601665,0.05192326,2587.0,2586.2,2.28961843]
[1646900601861,0.05192326,2587.0,2586.2,14.07961843]
[1646900602064,1.11594997,2587.1,2586.3,0.07890616]
[1646900602262,1.1022863,2587.1,2586.3,0.07890616]
[1646900602662,1.1159502,2587.1,2586.3,0.07890616]
[1646900603515,0.96762,2587.0,2586.3,0.07890616]
[1646900603716,0.05298909,2586.9,2586.3,0.07890616]
[1646900603915,0.05298909,2586.9,2586.2,0.3]
[1646900604116,0.05298909,2586.9,2586.0,0.34469]
[1646900604316,1.98844909,2586.9,2586.0,0.04469]
[1646900604516,1.01871742,2586.8,2586.0,0.04469]
[1646900604717,1.01871742,2586.8,2585.6,0.00096]
[1646900604718,1.23136244,2586.1,2585.6,0.00096]
[1646900604917,0.43190709,2586.7,2586.1,49.76863756]
[1646900604918,9.38180709,2586.7,2586.1,49.76863756]
[1646900605118,1.10912043,2586.2,2585.5,0.00341793]
[1646900605317,1.10912043,2586.2,2585.5,0.0885883]
[1646900605519,1.10912043,2586.2,2585.5,0.0876283]
[1646900605918,1.10912043,2586.2,2585.5,0.08421037]
[1646900606120,1.10912043,2586.2,2585.5,0.08762777]
[1646900606121,2.07704043,2586.2,2585.5,0.08762777]
[1646900606519,2.07704043,2586.2,2585.5,0.0034174]
[1646900606520,1.22817335,2585.8,2585.5,0.0034174]
[1646900606924,0.96792,2586.2,2585.9,49.77182665]
[1646900606925,0.98714633,2586.1,2585.9,49.77182665]
[1646900607191,0.98714633,2586.1,2585.8,2.00963697]
[1646900607388,0.96792,2586.2,2585.8,2.97754697]
[1646900607590,0.04588429,2586.3,2585.8,2.97754697]
[1646900608594,1.17293738,2586.3,2585.8,2.97754697]
[1646900608791,0.044273,2586.2,2585.8,2.97754697]
[1646900611422,0.04301215,2586.5,2586.1,1.93532]
[1646900611621,0.04233975,2586.7,2586.2,51.0]
[1646900611822,0.04894283,2586.9,2586.2,0.3]
[1646900612219,0.04894283,2586.9,2586.1,0.96765]
[1646900612220,1.00543254,2586.7,2586.1,1.26765]
[1646900612420,0.05500395,2586.6,2586.1,1.26765]
[1646900613525,1.20761829,2586.2,2586.1,1.26765]
[1646900613723,1.20761829,2586.2,2586.1,0.3]
[1646900614121,1.20761829,2586.2,2585.8,2.00963697]
[1646900614564,0.04345358,2586.5,2585.8,2.00963697]
[1646900614965,0.9679,2586.3,2585.8,2.00963697]
[1646900616267,1.09778291,2586.1,2585.8,1.70963697]
[1646900616668,1.15078099,2586.1,2585.8,1.70963697]
[1646900619121,0.05299808,2586.1,2585.8,1.70963697]
[1646900619323,0.9679,2586.3,2585.8,2.97745697]
[1646900619524,0.05227144,2586.6,2585.9,1.60271216]
[1646900619525,0.04667379,2586.5,2585.9,1.60271216]
[1646900620326,0.04667379,2586.5,2585.9,3.53817216]
[1646900620529,0.04667379,2586.5,2585.9,1.93546]
[1646900620729,0.04667379,2586.5,2586.1,0.96772]
[1646900621531,0.95194943,2586.4,2586.1,0.96772]
[1646900623169,0.04667379,2586.5,2586.1,0.96772]
[1646900627917,2.10236212,2586.6,2586.1,0.96772]
[1646900628823,2.10236212,2586.6,2586.0,0.3]
[1646900629219,0.05420405,2586.5,2586.0,0.3]
[1646900629418,4.38072887,2586.5,2586.0,0.3]
[1646900630165,1.01996841,2586.4,2586.0,0.3]
[1646900630364,1.01996841,2586.4,2585.9,1.93546]
[1646900634814,1.17364342,2586.2,2585.9,1.93546]
[1646900637171,1.01996841,2586.4,2585.9,1.93546]
[1646900637373,0.05212841,2586.4,2585.9,1.93546]
[1646900638174,1.2373,2586.8,2585.9,1.93546]
[1646900638373,1.185417,2586.7,2586.1,1.12637048]
[1646900638576,1.185417,2586.7,2586.2,0.96752]
[1646900640272,1.2373,2586.8,2586.2,0.96752]
[1646900640473,1.2373,2586.8,2586.2,1.9083238]
[1646900640918,4.32652482,2586.7,2585.8,1.90293697]
[1646900641115,0.0461957,2586.6,2585.9,3.92155]
[1646900641919,1.91052959,2586.2,2585.9,3.92155]
[1646900642720,4.32652482,2586.1,2585.9,3.92155]
[1646900642922,0.05379843,2586.0,2585.9,2.9536]
[1646900643523,0.05379843,2586.0,2585.9,2.952565]
[1646900645383,0.05379843,2586.0,2585.9,2.78109033]
[1646900645586,43.0,2585.8,2584.9,0.12125486]
[1646900645792,3.0,2585.6,2585.5,7.835e-05]
[1646900645985,12.56155312,2585.6,2585.5,7.835e-05]
[1646900646187,12.56155312,2585.6,2584.6,0.3867]
[1646900646188,43.0,2585.5,2584.6,0.3867]
[1646900646387,43.0,2585.5,2583.6,4.50318225]
[1646900646388,3.3863,2585.0,2583.6,4.50318225]
[1646900646593,0.557,2584.9,2583.8,0.96872]
[1646900646787,0.557,2584.9,2583.6,4.50318225]
[1646900646788,4.88352482,2584.9,2583.6,4.50318225]
[1646900646990,7.12112612,2584.9,2583.6,4.50318225]
[1646900647185,7.12112612,2584.9,2583.7,1.19070682]
[1646900647186,0.95849514,2584.3,2583.7,1.19070682]
[1646900647387,0.557,2584.6,2583.7,1.19070682]
[1646900647588,1.0,2584.9,2583.8,0.96866]
[1646900647787,4.32652482,2585.0,2583.8,2.90556]
[1646900647987,2.4011,2585.1,2583.8,1.9369]
[1646900648189,4.32652482,2585.0,2583.8,1.9369]
[1646900648415,2.11579787,2584.9,2584.2,1.04408593]
[1646900648620,4.32652482,2584.8,2584.2,0.96837]
[1646900648916,2.11579787,2584.9,2584.2,0.96837]
[1646900649118,1.0,2584.8,2584.2,0.96837]
[1646900649318,1.93717,2584.7,2584.1,1.93674]
[1646900649521,4.32652482,2584.6,2584.1,1.93674]
[1646900649720,0.96881,2584.4,2583.8,0.96874]
[1646900649916,4.32652482,2584.3,2583.5,0.00096]
[1646900650119,0.3,2584.3,2583.3,1.93765]
[1646900650317,5.5582612,2584.3,2583.3,1.93765]
[1646900650516,4.5582612,2584.3,2583.3,1.93765]
[1646900650719,1.93785,2584.2,2583.3,1.93765]
[1646900650920,0.96895,2583.6,2583.3,1.93765]
[1646900651118,0.96895,2583.6,2583.4,0.01361582]
[1646900651820,0.96895,2583.6,2583.3,1.93765]
[1646900652268,0.96895,2583.6,2583.4,0.00340361]
[1646900652668,2.5319,2584.2,2583.4,0.00340361]
[1646900652669,2.1456,2584.2,2583.6,50.03105]
[1646900652868,0.557,2584.5,2583.6,1.93744]
[1646900653068,1.0,2584.3,2583.6,1.93744]
[1646900653268,4.3622,2584.7,2583.6,1.93744]
[1646900653468,4.6622,2584.7,2583.6,1.93744]
[1646900653669,4.6622,2584.7,2583.8,0.00340344]
[1646900653871,1.19769998,2584.4,2583.9,0.9687]
[1646900654270,4.6622,2584.7,2583.9,0.9687]
[1646900654472,0.96862,2584.5,2583.8,1.93725]
[1646900654675,1.26862,2584.5,2584.0,0.00340334]
[1646900654872,43.0,2584.4,2583.6,0.01361539]
[1646900655075,0.557,2584.3,2583.6,0.01361539]
[1646900655472,0.3863,2584.1,2582.6,4.24764836]
[1646900655673,0.90571902,2583.3,2582.6,0.90531574]
[1646900655917,0.96916,2583.2,2582.7,0.00096]
[1646900656115,0.96916,2583.2,2582.6,0.90435574]
[1646900656615,0.96916,2583.2,2582.5,3.87503]
[1646900656816,1.9384032,2583.2,2582.5,3.87503]
[1646900657015,1.9384032,2583.2,2582.6,0.96918]
[1646900657639,1.9384032,2583.2,2582.3,0.03966988]
[1646900657640,1.22142557,2582.8,2582.3,0.03966988]
[1646900657820,0.96942,2582.7,2582.3,0.03870988]
[1646900659021,0.05048412,2583.1,2582.4,0.96934]
[1646900659667,0.04471884,2583.3,2582.4,0.97274126]
[1646900659873,0.04471884,2583.3,2582.8,1.22937831]
[1646900660068,0.04471884,2583.3,2582.9,0.96905]
[1646900660468,1.0,2583.4,2582.9,0.96905]
[1646900660668,0.99194509,2583.5,2582.9,0.96905]
[1646900660869,0.99194509,2583.5,2582.9,0.97190125]
[1646900661270,0.03799817,2583.1,2582.9,0.97190125]
[1646900661470,0.96898,2583.5,2583.1,50.96200183]
[1646900661670,0.96905,2583.3,2583.0,3.87619]
[1646900661870,0.96905,2583.3,2583.1,0.00285109]
[1646900662673,0.96905,2583.3,2583.0,3.87619]
[1646900663073,0.96905,2583.3,2583.2,1.19015008]
[1646900663364,3.96085509,2583.7,2583.2,1.19015008]
[1646900663555,1.04305509,2583.7,2583.2,1.19015008]
[1646900663760,0.04305509,2583.7,2583.2,2.15906008]